Cogmind - Beta 13 @@@ ROGUE MODE // 2024.04.07 @ 22:56:54 Player: SnowyImp Result: Destroyed by G-47 Trooper with Particle Gun Performance ------------- Evolutions (0) 0 Regions Visited (1) 200 Robots Destroyed (10) 50 Value Destroyed (260) 260 Prototype IDs (1) 20 Alien Tech Used (0) 0 Bonus (0) 0 TOTAL SCORE: 530 Bonus ------- None Cogmind --------- Core Integrity 0/250 Matter 176/300 Energy 234/250 System Corruption 2% Temperature Hot (243) Movement Walking (120) Location -10/Materials Parts ------- > --- POWER (1) -------- Ion Engine > --- PROPULSION (2) --- Aluminum Leg Aluminum Leg > --- UTILITY (2) ------ Heat Sink > --- WEAPON (2) ------- Advanced Beam Cannon Advanced Beam Cannon > --- INVENTORY (5) ---- Ion Engine Flight Unit Flight Unit Flight Unit Propulsion Shielding Peak State ------------ > --- POWER ------------ Ion Engine > --- PROPULSION ------- Flight Unit Flight Unit > --- UTILITY ---------- Heat Sink > --- WEAPON ----------- Advanced Beam Cannon Advanced Beam Cannon > --- INVENTORY -------- Ion Engine Flight Unit Propulsion Shielding [Rating: 10] Favorites ----------- Power Ion Engine Engine Ion Engine Propulsion Compact Wheel Leg Aluminum Leg Wheel Compact Wheel Flight Unit Flight Unit Utility Heat Sink Device Heat Sink Protection Propulsion Shielding Weapon EM Shotgun Energy Gun EM Shotgun Energy Cannon Advanced Beam Cannon Build | -11 -10 ------- Run | Yrd Mat Slots Evolved . | . . Power . | . . Propulsion . | . . Utility . | . . Weapon . | . . Parts Attached 21 | 4 17 Power 2 | 1 1 Engine 2 | 1 1 Core . | . . Reactor . | . . Propulsion 10 | 2 8 Treads . | . . Leg 2 | . 2 Wheel 4 | 2 2 Hover . | . . Flight 4 | . 4 Utility 3 | . 3 Device 2 | . 2 Storage . | . . Processor . | . . Hackware . | . . Protection 1 | . 1 Artifact . | . . Weapon 6 | 1 5 Energy Gun 4 | 1 3 Energy Cannon 2 | . 2 Ballistic Gun . | . . Ballistic Cannon . | . . Launcher . | . . Special Weapon . | . . Impact Weapon . | . . Slashing Weapon . | . . Piercing Weapon . | . . Special Melee Weapon . | . . Unidentified Prototypes 1 | . 1 Parts Lost 4 | . 4 Power . | . . Propulsion 1 | . 1 Utility . | . . Weapon 3 | . 3 Highest Loss Streak 2 | . 2 To Critical Strikes . | . . Average Slot Usage (%) 85 | . 85 Engine 14 | . 14 Wheel 25 | . 25 Flight 2 | . 2 Device 16 | . 16 Protection 5 | . 5 Energy Gun 19 | . 19 Energy Cannon 1 | . 1 Naked Turns . | . . Heaviest Build 14 | 6 14 Greatest Support 32 | 32 32 Greatest Overweight (x) 1 | . 1 Average Overweight (x) . | . . Largest Inventory Capacity 5 | 5 5 Average Capacity 5 | 5 5 Most Carried 5 | 2 5 Average Carried 3 | . 3 Final Capacity 5 | 5 5 Final Carried 5 | 1 5 Class Distribution -------------------- 100% | Mutant Dominant Class ---------------- Mutant | -10/Materials Resources | -11 -10 ----------- Run | Yrd Mat Matter Collected 276 | 166 110 Remotely . | . . Salvage Created 385 | . 385 Parts 22 | . 22 Haulers Intercepted . | . . Recyclers Shooed . | . . Parts Field Recycled . | . . Retrieved Matter . | . . Parts Self-Destructed . | . . Prevented . | . . Kills | -11 -10 ------- Run | Yrd Mat Combat Hostiles Destroyed 9 | . 9 Guns 4 | . 4 Cannons 4 | . 4 AOE 1 | . 1 Classes Destroyed 3 | . 3 Recycler 1 | . 1 Swarmer 3 | . 3 Grunt 6 | . 6 Best Kill Streak 4 | . 4 Combat Bots Only 4 | . 4 Max Kills in Single Turn 2 | . 2 Gunslinging . | . . Exploded 1 | . 1 Melee . | . . Uniques/NPCs Destroyed . | . . Combat | -11 -10 -------- Run | Yrd Mat Hostile Shots Fired 78 | . 78 Missed 24 | . 24 Damage Taken 782 | . 782 Core 263 | . 263 Absorbed by Shields . | . . Redirected to Shielding 3 | . 3 Core Remaining (%) 100 | 100 . Volleys Fired 24 | . 24 Largest 2 | . 2 Hottest 136 | . 136 Shots Fired 33 | . 33 Gun 21 | . 21 Cannon 12 | . 12 Launcher . | . . Special . | . . Kinetic . | . . Thermal 27 | . 27 Explosive . | . . Electromagnetic 6 | . 6 Robot Hit Streak 9 | . 9 Robot Miss Streak 2 | . 2 Penetration Max . | . . Secondary Targets . | . . Shots Hit Robots 25 | . 25 Core Hits 13 | . 13 Critical Kills . | . . Critical Parts Destroyed . | . . Critical Strikes . | . . Melee Attacks . | . . Impact . | . . Slashing . | . . Piercing . | . . Sneak Attacks . | . . Combat Hostiles . | . . Follow-up Attacks . | . . Damage Inflicted 459 | . 459 Guns 194 | . 194 Cannons 186 | . 186 Explosions 73 | . 73 Melee . | . . Ramming 6 | . 6 Kinetic . | . . Thermal 377 | . 377 Explosive . | . . Electromagnetic 76 | . 76 Impact . | . . Slashing . | . . Piercing . | . . Highest Corruption 2 | . 2 Average Corruption 2 | . 2 Corruption Purged . | . . Corruption Blocked . | . . Effects 4 | . 4 Message Errors 1 | . 1 Matter Fused 2 | . 2 Data Loss (minor) 1 | . 1 Overload Shots . | . . Overflow Damage 54 | . 54 Projectiles . | . . Explosions 54 | . 54 Melee . | . . Knockbacks . | . . Impact . | . . Kinetic . | . . Secondary . | . . Self-Inflicted Damage 161 | . 161 Shots 3 | . 3 Rammed 2 | . 2 Targets Rammed 2 | . 2 Kicked . | . . Crushed . | . . Highest Temperature 303 | . 303 Average Temperature 153 | . 153 Received Heat Transfer 312 | . 312 Siege Activations . | . . Robots Corrupted . | . . Combat Hostiles . | . . Parts Fried . | . . Impact Corruptions . | . . Robots Melted . | . . Combat Hostiles . | . . Parts Melted 4 | . 4 Heat Transferred 708 | . 708 Parts Sabotaged . | . . Parts Stolen . | . . Parts Stripped . | . . Power Chain Reactions 1 | . 1 Alert | -11 -10 ------- Run | Yrd Mat Peak Influence 238 | . 238 Initial . | . . Average 85 | . 90 Maximum Alert Level 1 | . 1 Low Security (%) 93 | 100 93 Level 1 6 | . 6 Level 2 . | . . Level 3 . | . . Level 4 . | . . Level 5 . | . . High Security . | . . Max Security . | . . Squads Dispatched 4 | . 4 Investigation 1 | . 1 Extermination . | . . Reinforcement 3 | . 3 Assault . | . . Garrison . | . . Intercept . | . . Searches Triggered . | . . Construction Impeded . | . . Haulers Reinforced . | . . Active Scanning Responses . | . . Cargo Convoy Interrupts . | . . Stealth | -11 -10 --------- Run | Yrd Mat Distress Signals 2 | . 2 Communications Jammed . | . . Distress Signals . | . . Times Spotted 21 | . 21 Peak Tracking Total 11 | . 11 Tactical Retreats 1 | . 1 Traps | -11 -10 ------- Run | Yrd Mat Traps Triggered 1 | . 1 Indirectly . | . . Trap Hack Attempts . | . . Triggered . | . . Disarmed . | . . Reprogrammed . | . . Reused . | . . Traps Extracted . | . . Installed . | . . Triggered . | . . Machines | -11 -10 ---------- Run | Yrd Mat Machines Disabled 2 | . 2 Max in Single Turn 2 | . 2 Machines Repaired . | . . Machines Dismantled . | . . Machines Sabotaged . | . . Overloaded Fab Kills . | . . Hacking | -11 -10 --------- Run | Yrd Mat Machines Accessed 2 | . 2 Terminals 2 | . 2 Fabricators . | . . Repair Stations . | . . Recycling Units . | . . Scanalyzers . | . . Garrison Access . | . . Total Hacks 9 | . 9 Successful 3 | . 3 Failed 6 | . 6 Catastrophic 1 | . 1 Database Lockouts . | . . Manual 9 | . 9 Terminals 9 | . 9 Fabricators . | . . Repair Stations . | . . Recycling Units . | . . Scanalyzers . | . . Garrison Access . | . . Terminal Hacks . | . . Fabricator Hacks . | . . Repair Station Hacks . | . . Recycling Unit Hacks . | . . Scanalyzer . | . . Garrison Access Hacks . | . . Unauthorized Hacks 3 | . 3 Terminals 3 | . 3 Assimilate 1 | . 1 Botnet 2 | . 2 Fabricators . | . . Repair Stations . | . . Recycling Units . | . . Scanalyzers . | . . Garrison Access . | . . Data Cores Recovered . | . . Used . | . . Hacking Detections 2 | . 2 Full Trace Events . | . . Feedback Events . | . . Feedback Blocked . | . . Robot Schematics Acquired . | . . Robots Built . | . . Authchips . | . . Time . | . . Total Robot Build Rating . | . . Part Schematics Acquired . | . . Parts Built . | . . Authchips . | . . Time . | . . Total Part Build Rating . | . . Parts Repaired . | . . Time . | . . Parts Recycled . | . . Recycled Matter . | . . Retrieved Matter . | . . Retrieved Components . | . . Parts Scanalyzed . | . . Part Schematics Acquired . | . . Parts Damaged . | . . Bothacking | -11 -10 ------------ Run | Yrd Mat Used RIF Installer . | . . Robots Hacked . | . . Non-combat . | . . Combat . | . . Robot Hacks Applied . | . . Relay Couplers Released . | . . Fabnet Peak Effective % . | . . Robots Rewired . | . . Allies Hacked . | . . Hacks Repelled . | . . Allies | -11 -10 -------- Run | Yrd Mat Total Allies . | . . Largest Group . | . . Highest-Rated Group . | . . Highest-Rated Ally . | . . Total Orders . | . . Ally Attacks . | . . Total Damage . | . . Kills . | . . Allies Corrupted . | . . Allies Melted . | . . Intel | -11 -10 ------- Run | Yrd Mat Robot Analysis Total . | . . Derelict Logs Recovered . | . . Drone Launches . | . . Drone Recoveries . | . . Exploration | -11 -10 ------------- Run | Yrd Mat Turns Passed 555 | 34 521 Spaces Moved 452 | 29 423 Core 3 | 3 . Treads . | . . Legs 1 | . 1 Wheels 400 | 26 374 Hover . | . . Flight 48 | . 48 Fastest Speed 37 | 50 37 Average Speed 93 | 94 93 Slowest Speed 190 | 100 190 Overloaded Moves . | . . Propulsion Burnouts . | . . Robots Hopped 6 | . 6 Cave-ins Triggered . | . . Exploration Rate (%) 34 | 4 65 Regions Visited 1 Branch Regions . Pre-discovered Areas . | . . Known Exits Taken . | . . Unknown Exits Taken 1 | 1 . Scrap Searched . | . . Spaces Dug . | . . Terrain Destroyed 41 | . 41 Melee . | . . Projectile . | . . AOE 41 | . 41 Terrain Rammed . | . . Walls Destroyed . | . . Machines Disabled . | . . Actions | -11 -10 --------- Run | Yrd Mat Total 539 | 34 505 Wait 33 | . 33 Move 440 | 28 412 Hop 5 | . 5 Pick Up 7 | 2 5 Fast Attach 12 | 3 9 Attach 4 | 1 3 Detach 3 | . 3 Swap 5 | . 5 Drop 4 | . 4 Fire 24 | . 24 Melee . | . . Ram 2 | . 2 Kick . | . . Crush . | . . Escape Stasis . | . . Rewire . | . . Trap . | . . Miscellaneous . | . . Route ------- -11/Scrapyard -10/Materials (discovered 2 exits: [*Mat x2]) History --------- Turn | Location | Event 22 | -11/Scrapyard | Discovered new exit (range 15) 35 | -11/Scrapyard | Entered Materials 316 | -10/Materials | Build established: Mutant 331 | -10/Materials | Discovered new exit (range 6) 502 | -10/Materials | Core integrity fell below 50% 522 | -10/Materials | Discovered new exit (range 14) 538 | -10/Materials | Core integrity fell below 20% 556 | -10/Materials | Destroyed by G-47 Trooper with Particle Gun Last Messages --------------- 00502_ Triggered Alarm Trap. 00502_ An alarm sounds. 00502_ ALERT: Alarm triggered, dispatching investigation squad. 00503_ Com. Wheel destroyed. 00513_ EM Shotgun destroyed. 00513_ Dropped Com. Wheel. 00516_ W-16 Scout sends out distress signal. 00518_ K-01 Serf cleans the Terminal. 00522_ EXIT=FOUND 00526_ Acquired Prototype Energy Cannon. 00526_ Identified Adv. Beam Cannon. 00529_ Acquired Adv. Beam Cannon. 00531_ G-34 Mercenary destroyed. 00540_ Aluminum Leg melted. 00540_ G-34 Mercenary destroyed. 00543_ Heat Sink melted. 00543_ G-34 Mercenary destroyed. 00549_ Acquired Aluminum Leg. 00556_ Critical hit (Burn: +37). Map ----- +----------------------------------------------------+ | ??????????????????????????????????????????????? | | ??????????????????????????????????????????????? | | ??????????????????????????????????????????????? | | ??????????????????????????????????????????????? | | ???????????????????????????????????????????????? | | ??????????? ?????????????????????????????????? | | ??????????# ?????????????????????????????????? | | ??????????# ?????????????????????????????????? | | ??????????# ?????????????????????????????????? | | ??????????# ?????????????????????????????????? | | ??????????# ?????????????????????????????????? | | ????????### #????????????????????????????????? | | ????????#"" +????????????????????????????????? | | ????????#"" #????????????????????????????????? | | ????????#"T #????????????????????????????????? | | ????????#"" #???????????? ???????????????????? | | ?????????"" ###########?? ???????????????????? | | ??????????# # #?? #??????????????????? | | ??????????# #= #?? #??????????????????? | | ??????????# / #?? #??????????????????? | | ??######### # #?? #??????????????????? | | #? # ###########?? #??????????????????? | | ## """ # #??????????## ##?????????????????? | | ## """ # #??????##### #?????????????????? | | ## """ # #??????#[[ %! +?????????????????? | | ## # #??????#[[ @ #?????????????????? | | ## + #??????# ] #?????????????????? | | ## " " # #??????#] #?????????????????? | | ## "R" # #??????#!! = #?????????????????? | | ## """ # #??????#!! =%% #####?????????????? | | #?######### #??????#####gg* #?????????????? | | #### # ############!g < #?????????????? | | ## # g #?????????????? | | ## + #####################????????????? | | ## # #???????????#[ #????????????? | | ## # ########????# """ #????????????? | | ## # # #????# = """ #????????????? | | ######### # ###### """ #????????????? | | #???????# # ##"""# = #????????????? | | ########### # """ ##"Y"####+##############??? | | + """ ##" "## # #??? | | # """ + *=[ # #??? | | ##############+#### # """ #??? | | ########### #????????# % # # """"" #??? | | ??????????# #????????# """ # # """"" #??? | | ??????????# #????????# """ # # """"" #??? | | ??????????# #????????# """ # # """ #??? | | ??????????# #????????# # + !#??? | | ??????????# #????????#" # # #??? | | ?########## #????????#T # ^##########??? | +----------------------------------------------------+ Best States ------------- Heat Dissipation 45 Energy Generation 10 Energy Capacity 250 Matter Stores 300 Matter Capacity 300 Sight Range 16 Terrain Scan Density 10 Propulsion Shielding 33 Evasion (%) 62 Item Schematics ----------------- None Robot Schematics ------------------ None Fabricated ------------ Nothing Alien Tech Used ----------------- None Achievements -------------- None Challenges ------------ None Game ------ Seed GrenadeBladePendant Manual? 0 Play Time 00:08:47 Cumulative 23.0 hours Start 2024.04.07 @ 22:50:38 End 2024.04.07 @ 22:56:54 Sessions 1 Manual Loads 0 Difficulty Rogue Special Mode None Game No. 32 Rogue 32 Adventurer 0 Explorer 0 Win Type - Total 0 Types 0/0/0/0/0/0/0/0/0 Lore% 13 Gallery% 27 Achievement% 23 Wizard Run 0 Options --------- Layout 1 ASCII 0 Keyboard 0 Movement Numpad Keybinds 0 Fullscreen 1 Font 24/Crisp Map View 50x35 Zoom Use 0% Tactical HUD 1 Map Filters NONE Filters NONE Steam 1 RUN: 518c16fb-cce1-47bf-aced-b16a904fb0bb